[Event "Titled Tuesday Blitz November 01 Early 2022"]
[White "Jovic, Stanoje"]
[Black "Korchmar, Vasiliy"]
[WhiteFideId "905020"]
[BlackFideId "24131750"]
[WhiteElo "2238"]
[BlackElo "2370"]
[Result "0-1"]
[Round "04"]
[TimeControl "180+1"]
[Date "2022.11.02"]
[WhiteClock "0:00:03"]
[BlackClock "0:00:10"]

1. c4 {[%clk 0:03:00]}  c6 {[%clk 0:02:59]} 2. e4 {[%clk 0:03:00]}  d5 {[%clk 0:02:59]} 3. exd5 {[%clk 0:03:01]}  cxd5 {[%clk 0:03:00]} 4. cxd5 {[%clk 0:03:01]}  Nf6 {[%clk 0:03:00]} 5. Qa4+ {[%clk 0:03:01]}  Nbd7 {[%clk 0:03:00]} 6. Bc4 {[%clk 0:03:01]}  g6 {[%clk 0:03:00]} 7. d3 {[%clk 0:03:01]}  Bg7 {[%clk 0:03:00]} 8. Nc3 {[%clk 0:03:01]}  O-O {[%clk 0:03:01]} 9. Nf3 {[%clk 0:03:01]}  a6 {[%clk 0:02:46]} 10. Qa3 {[%clk 0:03:01]}  b5 {[%clk 0:02:22]} 11. Bxb5 {[%clk 0:03:00]}  Nb6 {[%clk 0:02:22]} 12. Bc6 {[%clk 0:02:58]}  Bg4 {[%clk 0:02:17]} 13. Ne5 {[%clk 0:02:51]}  Rc8 {[%clk 0:01:57]} 14. O-O {[%clk 0:02:47]}  Nfxd5 {[%clk 0:01:51]} 15. Nxg4 {[%clk 0:02:22]}  Rxc6 {[%clk 0:01:28]} 16. Nxd5 {[%clk 0:02:21]}  Nxd5 {[%clk 0:01:18]} 17. Bd2 {[%clk 0:02:12]}  Rc2 {[%clk 0:01:17]} 18. Bc3 {[%clk 0:02:01]}  Nxc3 {[%clk 0:01:02]} 19. bxc3 {[%clk 0:02:00]}  Rxc3 {[%clk 0:00:47]} 20. Qxa6 {[%clk 0:01:51]}  Qxd3 {[%clk 0:00:47]} 21. Qxd3 {[%clk 0:01:43]}  Rxd3 {[%clk 0:00:48]} 22. Rad1 {[%clk 0:01:36]}  Rfd8 {[%clk 0:00:41]} 23. Rxd3 {[%clk 0:01:35]}  Rxd3 {[%clk 0:00:42]} 24. Re1 {[%clk 0:01:12]}  Rd2 {[%clk 0:00:34]} 25. h3 {[%clk 0:01:01]}  e6 {[%clk 0:00:34]} 26. a4 {[%clk 0:00:57]}  Ra2 {[%clk 0:00:32]} 27. Rb1 {[%clk 0:00:56]}  h5 {[%clk 0:00:28]} 28. Rb8+ {[%clk 0:00:54]}  Kh7 {[%clk 0:00:28]} 29. Ne3 {[%clk 0:00:52]}  Ra1+ {[%clk 0:00:28]} 30. Nf1 {[%clk 0:00:48]}  Rxa4 {[%clk 0:00:28]} 31. Rb7 {[%clk 0:00:49]}  Kg8 {[%clk 0:00:26]} 32. g3 {[%clk 0:00:47]}  Bd4 {[%clk 0:00:25]} 33. Rd7 {[%clk 0:00:45]}  Kf8 {[%clk 0:00:22]} 34. Nd2 {[%clk 0:00:35]}  Ke8 {[%clk 0:00:20]} 35. Rb7 {[%clk 0:00:35]}  Ra2 {[%clk 0:00:19]} 36. Ne4 {[%clk 0:00:34]}  f5 {[%clk 0:00:13]} 37. Nd6+ {[%clk 0:00:34]}  Kd8 {[%clk 0:00:13]} 38. Nf7+ {[%clk 0:00:33]}  Ke8 {[%clk 0:00:13]} 39. Nd6+ {[%clk 0:00:33]}  Kf8 {[%clk 0:00:14]} 40. Rb8+ {[%clk 0:00:28]}  Ke7 {[%clk 0:00:11]} 41. Nc8+ {[%clk 0:00:27]}  Kd7 {[%clk 0:00:07]} 42. Kf1 {[%clk 0:00:12]}  Bxf2 {[%clk 0:00:06]} 43. Rb7+ {[%clk 0:00:06]}  Kxc8 {[%clk 0:00:06]} 44. Rg7 {[%clk 0:00:06]}  Bxg3 {[%clk 0:00:06]} 45. Rxg6 {[%clk 0:00:06]}  h4 {[%clk 0:00:06]} 46. Rxe6 {[%clk 0:00:06]}  f4 {[%clk 0:00:07]} 47. Rf6 {[%clk 0:00:06]}  Kd7 {[%clk 0:00:07]} 48. Kg1 {[%clk 0:00:06]}  Rh2 {[%clk 0:00:07]} 49. Kf1 {[%clk 0:00:05]}  Rxh3 {[%clk 0:00:07]} 50. Kg2 {[%clk 0:00:06]}  Rh2+ {[%clk 0:00:07]} 51. Kf3 {[%clk 0:00:06]}  Rb2 {[%clk 0:00:08]} 52. Rh6 {[%clk 0:00:05]}  Ke7 {[%clk 0:00:08]} 53. Ra6 {[%clk 0:00:04]}  Rd2 {[%clk 0:00:08]} 54. Rb6 {[%clk 0:00:03]}  Rd6 {[%clk 0:00:08]} 55. Rb7+ {[%clk 0:00:03]}  Ke6 {[%clk 0:00:09]} 56. Rb8 {[%clk 0:00:03]}  h3 {[%clk 0:00:09]} 57. Rh8 {[%clk 0:00:03]}  h2 {[%clk 0:00:09]} 58. Kg2 {[%clk 0:00:03]}  Rd2+ {[%clk 0:00:09]} 59. Kh1 {[%clk 0:00:03]}  Rd1+ {[%clk 0:00:09]} 60. Kg2 {[%clk 0:00:03]}  Rg1+ {[%clk 0:00:10]} 0-1


[Site "https://www.chess.com"]

[Event "Titled Tuesday Blitz November 01 Early 2022"]
[White "Kamsky, Gata"]
[Black "Molina, Roberto Junio Brito"]
[WhiteFideId "2000024"]
[BlackFideId "2109450"]
[WhiteElo "2666"]
[BlackElo "2388"]
[Result "1-0"]
[Round "04"]
[TimeControl "180+1"]
[Date "2022.11.01"]
[WhiteClock "0:00:43"]
[BlackClock "0:00:44"]

1. e4 {[%clk 0:03:00]}  c6 {[%clk 0:02:59]} 2. d3 {[%clk 0:02:44]}  d5 {[%clk 0:03:00]} 3. Nf3 {[%clk 0:02:44]}  g6 {[%clk 0:02:59]} 4. e5 {[%clk 0:02:42]}  Bg4 {[%clk 0:02:57]} 5. d4 {[%clk 0:02:37]}  e6 {[%clk 0:02:56]} 6. Nbd2 {[%clk 0:02:36]}  Ne7 {[%clk 0:02:50]} 7. h3 {[%clk 0:02:35]}  Bxf3 {[%clk 0:02:50]} 8. Nxf3 {[%clk 0:02:36]}  c5 {[%clk 0:02:47]} 9. dxc5 {[%clk 0:02:23]}  Nec6 {[%clk 0:02:33]} 10. Bd3 {[%clk 0:02:10]}  Nd7 {[%clk 0:02:28]} 11. O-O {[%clk 0:02:04]}  Nxc5 {[%clk 0:02:27]} 12. Bg5 {[%clk 0:02:00]}  Be7 {[%clk 0:02:26]} 13. Bh6 {[%clk 0:01:59]}  Bf8 {[%clk 0:02:26]} 14. Bf4 {[%clk 0:01:55]}  Be7 {[%clk 0:02:23]} 15. Be2 {[%clk 0:01:43]}  O-O {[%clk 0:02:22]} 16. c3 {[%clk 0:01:42]}  Qc7 {[%clk 0:02:10]} 17. Re1 {[%clk 0:01:41]}  Rad8 {[%clk 0:02:09]} 18. Bf1 {[%clk 0:01:36]}  a6 {[%clk 0:02:01]} 19. Bh6 {[%clk 0:01:34]}  Rfe8 {[%clk 0:02:00]} 20. Rc1 {[%clk 0:01:32]}  b5 {[%clk 0:01:59]} 21. a3 {[%clk 0:01:31]}  Na4 {[%clk 0:01:58]} 22. Rc2 {[%clk 0:01:29]}  Nb6 {[%clk 0:01:58]} 23. Bd3 {[%clk 0:01:25]}  Nc4 {[%clk 0:01:57]} 24. Qe2 {[%clk 0:01:23]}  Bf8 {[%clk 0:01:56]} 25. Bg5 {[%clk 0:01:21]}  Be7 {[%clk 0:01:56]} 26. Bf4 {[%clk 0:01:21]}  Bf8 {[%clk 0:01:55]} 27. g3 {[%clk 0:01:22]}  Bg7 {[%clk 0:01:55]} 28. h4 {[%clk 0:01:16]}  h5 {[%clk 0:01:53]} 29. Rcc1 {[%clk 0:01:13]}  Rd7 {[%clk 0:01:40]} 30. a4 {[%clk 0:01:02]}  Qb7 {[%clk 0:01:13]} 31. axb5 {[%clk 0:00:56]}  axb5 {[%clk 0:01:13]} 32. b3 {[%clk 0:00:54]}  N4a5 {[%clk 0:01:09]} 33. Bxb5 {[%clk 0:00:53]}  Nxb3 {[%clk 0:01:04]} 34. Rb1 {[%clk 0:00:53]}  Nc5 {[%clk 0:01:04]} 35. Nd4 {[%clk 0:00:52]}  Nxd4 {[%clk 0:00:48]} 36. cxd4 {[%clk 0:00:51]}  Ne4 {[%clk 0:00:49]} 37. Bxd7 {[%clk 0:00:51]}  Qxd7 {[%clk 0:00:50]} 38. Rec1 {[%clk 0:00:48]}  Qa4 {[%clk 0:00:48]} 39. Qd3 {[%clk 0:00:45]}  Bf8 {[%clk 0:00:44]} 40. f3 {[%clk 0:00:43]} 1-0


[Site "https://www.chess.com"]

[Event "Titled Tuesday Blitz November 01 Early 2022"]
[White "Korelskiy, Egor"]
[Black "Rohith Krishna S"]
[WhiteFideId "34329064"]
[BlackFideId "46617051"]
[WhiteElo "2053"]
[BlackElo "2270"]
[Result "1-0"]
[Round "04"]
[TimeControl "180+1"]
[Date "2022.11.02"]
[WhiteClock "0:00:08"]
[BlackClock "0:00:07"]

1. e4 {[%clk 0:03:00]}  e5 {[%clk 0:02:58]} 2. Nf3 {[%clk 0:03:00]}  Nc6 {[%clk 0:02:59]} 3. Bb5 {[%clk 0:02:59]}  a6 {[%clk 0:02:59]} 4. Ba4 {[%clk 0:02:59]}  Nf6 {[%clk 0:03:00]} 5. O-O {[%clk 0:02:59]}  Be7 {[%clk 0:03:00]} 6. Re1 {[%clk 0:02:59]}  b5 {[%clk 0:03:01]} 7. Bb3 {[%clk 0:02:59]}  d6 {[%clk 0:03:02]} 8. c3 {[%clk 0:02:59]}  O-O {[%clk 0:03:02]} 9. h3 {[%clk 0:02:59]}  Na5 {[%clk 0:03:02]} 10. Bc2 {[%clk 0:02:59]}  c5 {[%clk 0:03:03]} 11. d4 {[%clk 0:02:59]}  Qc7 {[%clk 0:03:03]} 12. d5 {[%clk 0:02:59]}  Bd7 {[%clk 0:03:03]} 13. Nbd2 {[%clk 0:02:59]}  c4 {[%clk 0:03:03]} 14. Nf1 {[%clk 0:02:59]}  Nb7 {[%clk 0:03:04]} 15. Ng3 {[%clk 0:02:58]}  a5 {[%clk 0:03:04]} 16. Nh2 {[%clk 0:02:53]}  Rfb8 {[%clk 0:03:03]} 17. f4 {[%clk 0:02:53]}  b4 {[%clk 0:03:02]} 18. Nf3 {[%clk 0:02:51]}  Nc5 {[%clk 0:02:53]} 19. Be3 {[%clk 0:02:46]}  a4 {[%clk 0:02:41]} 20. cxb4 {[%clk 0:02:34]}  Rxb4 {[%clk 0:02:42]} 21. Bd2 {[%clk 0:02:29]}  Rxb2 {[%clk 0:02:36]} 22. Bc3 {[%clk 0:02:27]}  Rxc2 {[%clk 0:02:22]} 23. Qxc2 {[%clk 0:02:26]}  exf4 {[%clk 0:02:22]} 24. e5 {[%clk 0:02:16]}  Nxd5 {[%clk 0:02:20]} 25. Ne4 {[%clk 0:02:06]}  Nxe4 {[%clk 0:02:18]} 26. Qxe4 {[%clk 0:02:04]}  Nxc3 {[%clk 0:02:17]} 27. Qxa8+ {[%clk 0:02:03]}  Bf8 {[%clk 0:02:15]} 28. exd6 {[%clk 0:01:57]}  Qc5+ {[%clk 0:02:14]} 29. Kh1 {[%clk 0:01:55]}  Bc6 {[%clk 0:02:15]} 30. Qc8 {[%clk 0:01:48]}  Qb5 {[%clk 0:02:07]} 31. Ne5 {[%clk 0:01:37]}  Bxg2+ {[%clk 0:01:27]} 32. Kxg2 {[%clk 0:01:35]}  Qb2+ {[%clk 0:01:28]} 33. Kh1 {[%clk 0:01:31]}  Ne2 {[%clk 0:01:28]} 34. Qc5 {[%clk 0:00:37]}  f3 {[%clk 0:00:57]} 35. Nxf3 {[%clk 0:00:32]}  Nf4 {[%clk 0:00:58]} 36. Qg1 {[%clk 0:00:22]}  Qc3 {[%clk 0:00:57]} 37. Qf1 {[%clk 0:00:20]}  Nh5 {[%clk 0:00:50]} 38. Qf2 {[%clk 0:00:17]}  g6 {[%clk 0:00:47]} 39. Rac1 {[%clk 0:00:17]}  Qa3 {[%clk 0:00:45]} 40. d7 {[%clk 0:00:16]}  Be7 {[%clk 0:00:35]} 41. Rxe7 {[%clk 0:00:15]}  Qxe7 {[%clk 0:00:33]} 42. Rd1 {[%clk 0:00:14]}  Qd8 {[%clk 0:00:33]} 43. Qe3 {[%clk 0:00:14]}  Nf6 {[%clk 0:00:33]} 44. Ne5 {[%clk 0:00:13]}  Kg7 {[%clk 0:00:20]} 45. Nc6 {[%clk 0:00:13]}  Qa8 {[%clk 0:00:20]} 46. d8=Q {[%clk 0:00:11]}  Qxc6+ {[%clk 0:00:21]} 47. Kg1 {[%clk 0:00:11]}  c3 {[%clk 0:00:20]} 48. Qdd4 {[%clk 0:00:10]}  c2 {[%clk 0:00:19]} 49. Rc1 {[%clk 0:00:11]}  Kg8 {[%clk 0:00:18]} 50. Qf2 {[%clk 0:00:09]}  Nh5 {[%clk 0:00:15]} 51. Qd8+ {[%clk 0:00:08]}  Kg7 {[%clk 0:00:14]} 52. Qfd4+ {[%clk 0:00:08]}  Kh6 {[%clk 0:00:14]} 53. Qe3+ {[%clk 0:00:07]}  Kg7 {[%clk 0:00:14]} 54. Qdd4+ {[%clk 0:00:07]}  f6 {[%clk 0:00:10]} 55. Qe7+ {[%clk 0:00:06]}  Kh6 {[%clk 0:00:10]} 56. Qf8+ {[%clk 0:00:07]}  Kg5 {[%clk 0:00:08]} 57. Qfc5+ {[%clk 0:00:06]}  f5 {[%clk 0:00:07]} 58. Qxc6 {[%clk 0:00:06]}  Nf4 {[%clk 0:00:08]} 59. Qxf4+ {[%clk 0:00:05]}  Kxf4 {[%clk 0:00:08]} 60. Qc4+ {[%clk 0:00:06]}  Kg5 {[%clk 0:00:08]} 61. Qxa4 {[%clk 0:00:07]}  Kh5 {[%clk 0:00:05]} 62. Qxc2 {[%clk 0:00:08]}  g5 {[%clk 0:00:06]} 63. Qxf5 {[%clk 0:00:07]}  h6 {[%clk 0:00:07]} 64. Qg4+ {[%clk 0:00:06]}  Kg6 {[%clk 0:00:07]} 65. Rc6+ {[%clk 0:00:07]}  Kf7 {[%clk 0:00:07]} 66. Qd7+ {[%clk 0:00:07]}  Kf8 {[%clk 0:00:07]} 67. Rc8# {[%clk 0:00:08]} 1-0


[Site "https://www.chess.com"]

[Event "Titled Tuesday Blitz November 01 Early 2022"]
[White "Kustar, Sandor"]
[Black "Jaracz, Pawel"]
[WhiteFideId "702900"]
[BlackFideId "1102222"]
[WhiteElo "2387"]
[BlackElo "2459"]
[Result "0-1"]
[Round "04"]
[TimeControl "180+1"]
[Date "2022.11.02"]
[WhiteClock "0:00:02"]
[BlackClock "0:00:28"]

1. Nf3 {[%clk 0:03:00]}  g6 {[%clk 0:02:59]} 2. d4 {[%clk 0:03:00]}  Bg7 {[%clk 0:02:59]} 3. c4 {[%clk 0:03:00]}  d6 {[%clk 0:02:55]} 4. g3 {[%clk 0:03:00]}  c6 {[%clk 0:02:54]} 5. Bg2 {[%clk 0:03:00]}  Bf5 {[%clk 0:02:54]} 6. Nc3 {[%clk 0:02:59]}  Qd7 {[%clk 0:02:50]} 7. Qb3 {[%clk 0:02:50]}  Na6 {[%clk 0:02:43]} 8. e4 {[%clk 0:02:44]}  Bg4 {[%clk 0:02:42]} 9. Be3 {[%clk 0:02:42]}  Rb8 {[%clk 0:02:41]} 10. Rd1 {[%clk 0:02:36]}  Bh3 {[%clk 0:02:29]} 11. O-O {[%clk 0:02:36]}  Bxg2 {[%clk 0:02:26]} 12. Kxg2 {[%clk 0:02:36]}  Nf6 {[%clk 0:02:25]} 13. h3 {[%clk 0:02:31]}  O-O {[%clk 0:02:25]} 14. e5 {[%clk 0:02:28]}  Ne8 {[%clk 0:02:23]} 15. Rfe1 {[%clk 0:02:23]}  Nac7 {[%clk 0:02:19]} 16. Bf4 {[%clk 0:02:23]}  Ne6 {[%clk 0:02:12]} 17. Bc1 {[%clk 0:02:21]}  N8c7 {[%clk 0:02:11]} 18. d5 {[%clk 0:01:55]}  Nc5 {[%clk 0:02:10]} 19. Qc2 {[%clk 0:01:55]}  a5 {[%clk 0:01:57]} 20. Be3 {[%clk 0:01:42]}  N7a6 {[%clk 0:01:54]} 21. Ne4 {[%clk 0:01:23]}  Nxe4 {[%clk 0:01:53]} 22. Qxe4 {[%clk 0:01:23]}  cxd5 {[%clk 0:01:50]} 23. Rxd5 {[%clk 0:01:20]}  Qa4 {[%clk 0:01:27]} 24. a3 {[%clk 0:00:44]}  dxe5 {[%clk 0:01:18]} 25. Nxe5 {[%clk 0:00:43]}  Nc7 {[%clk 0:01:12]} 26. Rd2 {[%clk 0:00:27]}  f5 {[%clk 0:01:02]} 27. Qd4 {[%clk 0:00:17]}  b5 {[%clk 0:00:46]} 28. c5 {[%clk 0:00:12]}  Qxd4 {[%clk 0:00:38]} 29. Bxd4 {[%clk 0:00:12]}  Ne6 {[%clk 0:00:39]} 30. Nc6 {[%clk 0:00:04]}  Nxd4 {[%clk 0:00:38]} 31. Nxd4 {[%clk 0:00:03]}  Rfd8 {[%clk 0:00:34]} 32. Red1 {[%clk 0:00:02]}  b4 {[%clk 0:00:28]} 33. Nc6 {[%clk 0:00:02]}  Rxd2 {[%clk 0:00:28]} 0-1


[Site "https://www.chess.com"]

[Event "Titled Tuesday Blitz November 01 Early 2022"]
[White "Kvaloy, Aksel Bu"]
[Black "Ristic, Nebojsa B"]
[WhiteFideId "1528815"]
[BlackFideId "935468"]
[WhiteElo "2178"]
[BlackElo "2320"]
[Result "0-1"]
[Round "04"]
[TimeControl "180+1"]
[Date "2022.11.02"]
[WhiteClock "0:00:01"]
[BlackClock "0:00:46"]

1. d4 {[%clk 0:03:00]}  Nf6 {[%clk 0:02:59]} 2. c4 {[%clk 0:03:00]}  e6 {[%clk 0:02:59]} 3. g3 {[%clk 0:02:59]}  g6 {[%clk 0:02:56]} 4. Nc3 {[%clk 0:02:58]}  Bg7 {[%clk 0:02:56]} 5. e4 {[%clk 0:02:58]}  d6 {[%clk 0:02:55]} 6. Bg2 {[%clk 0:02:57]}  O-O {[%clk 0:02:55]} 7. Nge2 {[%clk 0:02:57]}  Nc6 {[%clk 0:02:55]} 8. O-O {[%clk 0:02:54]}  e5 {[%clk 0:02:54]} 9. Be3 {[%clk 0:02:53]}  Ng4 {[%clk 0:02:52]} 10. d5 {[%clk 0:02:41]}  Nxe3 {[%clk 0:02:48]} 11. fxe3 {[%clk 0:02:42]}  Ne7 {[%clk 0:02:48]} 12. b4 {[%clk 0:02:41]}  f5 {[%clk 0:02:42]} 13. exf5 {[%clk 0:02:41]}  Nxf5 {[%clk 0:02:43]} 14. Qd3 {[%clk 0:02:37]}  Bh6 {[%clk 0:02:38]} 15. Rf3 {[%clk 0:02:36]}  Bd7 {[%clk 0:02:34]} 16. Raf1 {[%clk 0:02:33]}  Qe7 {[%clk 0:02:33]} 17. e4 {[%clk 0:02:27]}  Ng7 {[%clk 0:02:27]} 18. Rxf8+ {[%clk 0:02:26]}  Rxf8 {[%clk 0:02:28]} 19. Rxf8+ {[%clk 0:02:25]}  Qxf8 {[%clk 0:02:28]} 20. Nd1 {[%clk 0:01:36]}  Qf6 {[%clk 0:02:21]} 21. c5 {[%clk 0:01:22]}  a6 {[%clk 0:02:19]} 22. Nec3 {[%clk 0:01:06]}  Qg5 {[%clk 0:02:11]} 23. a4 {[%clk 0:00:37]}  Nh5 {[%clk 0:02:00]} 24. a5 {[%clk 0:00:33]}  Qc1 {[%clk 0:01:56]} 25. c6 {[%clk 0:00:23]}  bxc6 {[%clk 0:01:51]} 26. dxc6 {[%clk 0:00:24]}  Bg4 {[%clk 0:01:51]} 27. Bf3 {[%clk 0:00:16]}  Nf6 {[%clk 0:01:34]} 28. Bxg4 {[%clk 0:00:15]}  Nxg4 {[%clk 0:01:35]} 29. Kg2 {[%clk 0:00:11]}  Bd2 {[%clk 0:01:23]} 30. Qf3 {[%clk 0:00:07]}  h5 {[%clk 0:01:21]} 31. h3 {[%clk 0:00:07]}  Qc2 {[%clk 0:01:16]} 32. hxg4 {[%clk 0:00:04]}  Bxc3+ {[%clk 0:01:16]} 33. Kh3 {[%clk 0:00:04]}  Bxb4 {[%clk 0:01:07]} 34. gxh5 {[%clk 0:00:04]}  gxh5 {[%clk 0:01:06]} 35. Qxh5 {[%clk 0:00:03]}  Qxe4 {[%clk 0:01:06]} 36. Qe8+ {[%clk 0:00:03]}  Kg7 {[%clk 0:01:05]} 37. Nf2 {[%clk 0:00:03]}  Qf5+ {[%clk 0:01:04]} 38. Ng4 {[%clk 0:00:03]}  Qf7 {[%clk 0:01:01]} 39. Qd7 {[%clk 0:00:03]}  Bxa5 {[%clk 0:00:58]} 40. Qc8 {[%clk 0:00:01]}  d5 {[%clk 0:00:53]} 41. Ne3 {[%clk 0:00:01]}  Bb6 {[%clk 0:00:47]} 42. Nf5+ {[%clk 0:00:01]}  Kf6 {[%clk 0:00:46]} 43. Nh4 {[%clk 0:00:01]}  Qe6+ {[%clk 0:00:46]} 0-1


[Site "https://www.chess.com"]

[Event "Titled Tuesday Blitz November 01 Early 2022"]
[White "Laohawirapap, Prin"]
[Black "Fier, Alexandr"]
[WhiteFideId "6205003"]
[BlackFideId "2107139"]
[WhiteElo "2113"]
[BlackElo "2607"]
[Result "0-1"]
[Round "04"]
[TimeControl "180+1"]
[Date "2022.11.02"]
[WhiteClock "0:00:04"]
[BlackClock "0:00:54"]

1. d4 {[%clk 0:03:00]}  Nf6 {[%clk 0:02:59]} 2. Nc3 {[%clk 0:03:00]}  c5 {[%clk 0:02:59]} 3. d5 {[%clk 0:03:00]}  d6 {[%clk 0:02:58]} 4. Nf3 {[%clk 0:02:59]}  g6 {[%clk 0:02:58]} 5. e4 {[%clk 0:02:59]}  Bg7 {[%clk 0:02:57]} 6. h3 {[%clk 0:02:57]}  O-O {[%clk 0:02:56]} 7. Be2 {[%clk 0:02:57]}  Na6 {[%clk 0:02:45]} 8. O-O {[%clk 0:02:56]}  Nc7 {[%clk 0:02:28]} 9. Be3 {[%clk 0:02:50]}  Rb8 {[%clk 0:02:23]} 10. a4 {[%clk 0:02:49]}  a6 {[%clk 0:02:23]} 11. a5 {[%clk 0:02:43]}  Nd7 {[%clk 0:02:23]} 12. Nd2 {[%clk 0:02:41]}  b6 {[%clk 0:02:23]} 13. axb6 {[%clk 0:02:38]}  Nxb6 {[%clk 0:02:23]} 14. Ra2 {[%clk 0:02:36]}  f5 {[%clk 0:02:21]} 15. exf5 {[%clk 0:02:35]}  Bxf5 {[%clk 0:02:18]} 16. Nc4 {[%clk 0:02:35]}  Nxc4 {[%clk 0:02:14]} 17. Bxc4 {[%clk 0:02:36]}  Rb4 {[%clk 0:02:14]} 18. Qe2 {[%clk 0:02:31]}  Qb8 {[%clk 0:02:05]} 19. Bc1 {[%clk 0:02:26]}  Re8 {[%clk 0:01:59]} 20. Bxa6 {[%clk 0:02:21]}  e6 {[%clk 0:01:58]} 21. Bd3 {[%clk 0:01:36]}  exd5 {[%clk 0:01:55]} 22. Qf3 {[%clk 0:01:36]}  Bxd3 {[%clk 0:01:50]} 23. Qxd3 {[%clk 0:01:32]}  d4 {[%clk 0:01:49]} 24. Ne4 {[%clk 0:01:29]}  Nd5 {[%clk 0:01:49]} 25. Qf3 {[%clk 0:01:24]}  Rf8 {[%clk 0:01:48]} 26. Qg3 {[%clk 0:01:25]}  Be5 {[%clk 0:01:46]} 27. Qh4 {[%clk 0:01:23]}  Qb7 {[%clk 0:01:46]} 28. Bh6 {[%clk 0:01:21]}  Rb8 {[%clk 0:01:40]} 29. Qg4 {[%clk 0:01:17]}  Qf7 {[%clk 0:01:37]} 30. Ng5 {[%clk 0:01:15]}  Qf5 {[%clk 0:01:36]} 31. Qe2 {[%clk 0:00:59]}  Nf4 {[%clk 0:01:34]} 32. Qf3 {[%clk 0:00:56]}  R4b7 {[%clk 0:01:29]} 33. Ne4 {[%clk 0:00:48]}  Nxh3+ {[%clk 0:01:22]} 34. Qxh3 {[%clk 0:00:46]}  Qxe4 {[%clk 0:01:23]} 35. b3 {[%clk 0:00:37]}  Rf7 {[%clk 0:01:19]} 36. Rfa1 {[%clk 0:00:17]}  Bg7 {[%clk 0:01:18]} 37. Bxg7 {[%clk 0:00:13]}  Kxg7 {[%clk 0:01:19]} 38. Qg3 {[%clk 0:00:11]}  Rbf8 {[%clk 0:01:18]} 39. f3 {[%clk 0:00:11]}  Qe3+ {[%clk 0:01:18]} 40. Qf2 {[%clk 0:00:11]}  Qg5 {[%clk 0:01:14]} 41. Kf1 {[%clk 0:00:09]}  Re8 {[%clk 0:01:12]} 42. Ra7 {[%clk 0:00:08]}  Ree7 {[%clk 0:01:12]} 43. Rxe7 {[%clk 0:00:07]}  Rxe7 {[%clk 0:01:12]} 44. Re1 {[%clk 0:00:07]}  Rxe1+ {[%clk 0:01:09]} 45. Qxe1 {[%clk 0:00:08]}  Qe5 {[%clk 0:01:10]} 46. Qa5 {[%clk 0:00:06]}  Kh6 {[%clk 0:01:07]} 47. Qd8 {[%clk 0:00:06]}  Qf4 {[%clk 0:01:06]} 48. Ke2 {[%clk 0:00:02]}  Qe3+ {[%clk 0:01:05]} 49. Kd1 {[%clk 0:00:03]}  Qg1+ {[%clk 0:01:06]} 50. Kd2 {[%clk 0:00:04]}  Qxg2+ {[%clk 0:01:07]} 51. Kc1 {[%clk 0:00:04]}  Qxf3 {[%clk 0:01:05]} 52. Qxd6 {[%clk 0:00:04]}  Qe3+ {[%clk 0:01:04]} 53. Kb1 {[%clk 0:00:04]}  Qe1+ {[%clk 0:01:00]} 54. Kb2 {[%clk 0:00:03]}  Qc3+ {[%clk 0:00:59]} 55. Kb1 {[%clk 0:00:03]}  Kh5 {[%clk 0:00:54]} 56. Qh2+ {[%clk 0:00:02]}  Kg4 {[%clk 0:00:55]} 57. Qe2+ {[%clk 0:00:01]}  Qf3 {[%clk 0:00:54]} 58. Qe6+ {[%clk 0:00:02]}  Qf5 {[%clk 0:00:55]} 59. Qe2+ {[%clk 0:00:02]}  Kg3 {[%clk 0:00:55]} 60. Qe1+ {[%clk 0:00:02]}  Qf2 {[%clk 0:00:54]} 61. Qe5+ {[%clk 0:00:02]}  Qf4 {[%clk 0:00:55]} 62. Qe1+ {[%clk 0:00:02]}  Kg2 {[%clk 0:00:53]} 63. Qe2+ {[%clk 0:00:03]}  Kg1 {[%clk 0:00:53]} 64. Qe1+ {[%clk 0:00:03]}  Qf1 {[%clk 0:00:53]} 65. Qxf1+ {[%clk 0:00:04]}  Kxf1 {[%clk 0:00:54]} 0-1


[Site "https://www.chess.com"]

[Event "Titled Tuesday Blitz November 01 Early 2022"]
[White "Lawson, Eric"]
[Black "Fawzy, Adham"]
[WhiteFideId "2604116"]
[BlackFideId "10613129"]
[WhiteElo "2522"]
[BlackElo "2541"]
[Result "1-0"]
[Round "04"]
[TimeControl "180+1"]
[Date "2022.11.02"]
[WhiteClock "0:00:39"]
[BlackClock "0:00:08"]

1. d4 {[%clk 0:03:00]}  d5 {[%clk 0:02:59]} 2. c4 {[%clk 0:02:54]}  c6 {[%clk 0:02:59]} 3. Nf3 {[%clk 0:02:54]}  Nf6 {[%clk 0:02:59]} 4. Nc3 {[%clk 0:02:51]}  e6 {[%clk 0:02:59]} 5. Bg5 {[%clk 0:02:51]}  Nbd7 {[%clk 0:02:58]} 6. e3 {[%clk 0:02:32]}  Qa5 {[%clk 0:02:57]} 7. Qb3 {[%clk 0:02:04]}  dxc4 {[%clk 0:02:35]} 8. Bxc4 {[%clk 0:02:02]}  Ne4 {[%clk 0:02:11]} 9. Bh4 {[%clk 0:01:48]}  Bb4 {[%clk 0:01:40]} 10. O-O {[%clk 0:01:39]}  Bxc3 {[%clk 0:01:16]} 11. Bxe6 {[%clk 0:01:28]}  Bb4 {[%clk 0:00:13]} 12. Bxf7+ {[%clk 0:01:27]}  Kf8 {[%clk 0:00:13]} 13. a3 {[%clk 0:01:03]}  Bd6 {[%clk 0:00:12]} 14. Rad1 {[%clk 0:00:52]}  Qb5 {[%clk 0:00:11]} 15. Qa2 {[%clk 0:00:44]}  h6 {[%clk 0:00:10]} 16. Bg6 {[%clk 0:00:42]}  Ndf6 {[%clk 0:00:08]} 17. Qf7# {[%clk 0:00:39]} 1-0


[Site "https://www.chess.com"]

[Event "Titled Tuesday Blitz November 01 Early 2022"]
[White "Lazavik, Denis"]
[Black "Horobetz, Graham"]
[WhiteFideId "13515110"]
[BlackFideId "2047322"]
[WhiteElo "2437"]
[BlackElo "2603"]
[Result "1-0"]
[Round "04"]
[TimeControl "180+1"]
[Date "2022.11.01"]
[WhiteClock "0:01:38"]
[BlackClock "0:00:39"]

1. d4 {[%clk 0:03:00]}  Nf6 {[%clk 0:02:59]} 2. c4 {[%clk 0:03:01]}  g6 {[%clk 0:02:59]} 3. g3 {[%clk 0:03:01]}  Bg7 {[%clk 0:02:59]} 4. Bg2 {[%clk 0:03:02]}  O-O {[%clk 0:03:00]} 5. Nc3 {[%clk 0:03:02]}  d6 {[%clk 0:03:00]} 6. Nf3 {[%clk 0:03:03]}  c5 {[%clk 0:03:01]} 7. O-O {[%clk 0:03:03]}  Nc6 {[%clk 0:03:01]} 8. dxc5 {[%clk 0:03:02]}  dxc5 {[%clk 0:03:00]} 9. Bf4 {[%clk 0:03:03]}  Be6 {[%clk 0:02:59]} 10. Ne5 {[%clk 0:03:03]}  Na5 {[%clk 0:02:55]} 11. Qe1 {[%clk 0:03:03]}  Nh5 {[%clk 0:02:45]} 12. Rd1 {[%clk 0:02:53]}  Qc8 {[%clk 0:02:35]} 13. Nd5 {[%clk 0:02:45]}  Bxd5 {[%clk 0:02:36]} 14. cxd5 {[%clk 0:02:45]}  Nxf4 {[%clk 0:02:35]} 15. gxf4 {[%clk 0:02:45]}  b6 {[%clk 0:02:32]} 16. b4 {[%clk 0:02:36]}  cxb4 {[%clk 0:02:30]} 17. Qxb4 {[%clk 0:02:37]}  Qf5 {[%clk 0:02:26]} 18. Nd3 {[%clk 0:02:25]}  Rac8 {[%clk 0:02:20]} 19. e4 {[%clk 0:02:19]}  Qg4 {[%clk 0:02:19]} 20. Qxe7 {[%clk 0:02:14]}  Bd4 {[%clk 0:02:04]} 21. Kh1 {[%clk 0:01:59]}  Rc3 {[%clk 0:01:58]} 22. Ne5 {[%clk 0:01:50]}  Bxe5 {[%clk 0:01:29]} 23. fxe5 {[%clk 0:01:50]}  Qc8 {[%clk 0:01:04]} 24. Qf6 {[%clk 0:01:41]}  Nc4 {[%clk 0:00:42]} 25. d6 {[%clk 0:01:39]}  Qd7 {[%clk 0:00:39]} 26. e6 {[%clk 0:01:38]} 1-0


[Site "https://www.chess.com"]